[Event "Early-Titled-Tuesday-Blitz-March-19-2024"]
[Site "Chess.com"]
[Date "2024.03.19"]
[Round "7"]
[White "aistrel"]
[Black "RedFirePanda"]
[Result "0-1"]
[WhiteElo "2643"]
[BlackElo "2547"]
[TimeControl "180+1"]
[EndTime "9:19:21 PDT"]
[Termination "RedFirePanda won by checkmate"]

1. d4 {[%clk 0:03:00.9]} 1... Nf6 {[%clk 0:02:58.9]} 2. Bf4 {[%clk 0:03:00.5]}
2... d5 {[%clk 0:02:53.7]} 3. e3 {[%clk 0:03:01]} 3... c6 {[%clk 0:02:53.7]} 4.
Nc3 {[%clk 0:02:59.2]} 4... Bf5 {[%clk 0:02:52.4]} 5. f3 {[%clk 0:02:59.4]} 5...
e6 {[%clk 0:02:46.6]} 6. g4 {[%clk 0:02:59.5]} 6... Bg6 {[%clk 0:02:46.9]} 7. h4
{[%clk 0:03:00.2]} 7... h5 {[%clk 0:02:46.9]} 8. g5 {[%clk 0:03:00.4]} 8... Nfd7
{[%clk 0:02:45.1]} 9. Bd3 {[%clk 0:03:01.1]} 9... Bxd3 {[%clk 0:02:44.8]} 10.
Qxd3 {[%clk 0:03:02]} 10... g6 {[%clk 0:02:44.8]} 11. O-O-O {[%clk 0:03:00.6]}
11... Bg7 {[%clk 0:02:43.5]} 12. e4 {[%clk 0:03:00.3]} 12... Nb6 {[%clk
0:02:40.4]} 13. Nge2 {[%clk 0:02:54]} 13... O-O {[%clk 0:02:38.1]} 14. Bxb8
{[%clk 0:02:48.3]} 14... Rxb8 {[%clk 0:02:30.9]} 15. e5 {[%clk 0:02:46.4]} 15...
Nd7 {[%clk 0:02:25.2]} 16. Nf4 {[%clk 0:02:45.1]} 16... Re8 {[%clk 0:02:21.8]}
17. Nce2 {[%clk 0:02:44.8]} 17... c5 {[%clk 0:02:20.6]} 18. c3 {[%clk
0:02:45.3]} 18... c4 {[%clk 0:02:20.3]} 19. Qc2 {[%clk 0:02:41.2]} 19... b5
{[%clk 0:02:20.2]} 20. Kd2 {[%clk 0:02:41.7]} 20... b4 {[%clk 0:02:19.7]} 21.
Ke3 {[%clk 0:02:42.2]} 21... Qb6 {[%clk 0:02:11.6]} 22. Kd2 {[%clk 0:02:35.6]}
22... a5 {[%clk 0:02:08.4]} 23. Ra1 {[%clk 0:02:34.5]} 23... Rec8 {[%clk
0:02:00.3]} 24. Rhe1 {[%clk 0:02:18.7]} 24... Qb5 {[%clk 0:01:44.4]} 25. Ke3
{[%clk 0:02:12.5]} 25... Qb6 {[%clk 0:01:44.1]} 26. Kd2 {[%clk 0:02:12.7]} 26...
Qb5 {[%clk 0:01:42.2]} 27. Ke3 {[%clk 0:02:13.2]} 27... a4 {[%clk 0:01:24.1]}
28. Kf2 {[%clk 0:02:08.4]} 28... a3 {[%clk 0:01:22.8]} 29. cxb4 {[%clk
0:02:00.7]} 29... Qxb4 {[%clk 0:01:16.4]} 30. bxa3 {[%clk 0:01:57.9]} 30... Qxa3
{[%clk 0:01:14.7]} 31. Reb1 {[%clk 0:01:57.4]} 31... Nb6 {[%clk 0:01:02.9]} 32.
Nxg6 {[%clk 0:01:49.9]} 32... fxg6 {[%clk 0:00:58.1]} 33. Qxg6 {[%clk
0:01:50.8]} 33... Qe7 {[%clk 0:00:52.1]} 34. Qxh5 {[%clk 0:01:48.2]} 34... c3
{[%clk 0:00:47.1]} 35. Nf4 {[%clk 0:01:38.5]} 35... c2 {[%clk 0:00:28.6]} 36.
Rc1 {[%clk 0:01:38.8]} 36... Na4 {[%clk 0:00:25.4]} 37. Qg6 {[%clk 0:01:37.3]}
37... Qf7 {[%clk 0:00:11.5]} 38. Qxe6 {[%clk 0:01:37.6]} 38... Qxe6 {[%clk
0:00:07.7]} 39. Nxe6 {[%clk 0:01:38.5]} 39... Nb2 {[%clk 0:00:04.3]} 40. Ke2
{[%clk 0:01:30.1]} 40... Rc3 {[%clk 0:00:04.1]} 41. Nc5 {[%clk 0:01:21.5]} 41...
Rb4 {[%clk 0:00:02.3]} 42. Kd2 {[%clk 0:01:18.7]} 42... Rxf3 {[%clk 0:00:02.2]}
43. Rxc2 {[%clk 0:01:19.2]} 43... Rxd4+ {[%clk 0:00:01.9]} 44. Ke2 {[%clk
0:01:12.8]} 44... Rh3 {[%clk 0:00:01.9]} 45. Rb1 {[%clk 0:01:11.6]} 45... Rh2+
{[%clk 0:00:01.5]} 46. Kf3 {[%clk 0:01:11.2]} 46... Rxc2 {[%clk 0:00:02.4]} 47.
Ne6 {[%clk 0:01:11.7]} 47... Bxe5 {[%clk 0:00:02.5]} 48. Nxd4 {[%clk 0:01:11.9]}
48... Bxd4 {[%clk 0:00:03.4]} 49. Rd1 {[%clk 0:01:12]} 49... Rc4 {[%clk
0:00:02.6]} 50. Rd2 {[%clk 0:01:09.7]} 50... Na4 {[%clk 0:00:02.6]} 51. h5
{[%clk 0:01:07.8]} 51... Nb6 {[%clk 0:00:03.2]} 52. Re2 {[%clk 0:01:06.6]} 52...
Kf7 {[%clk 0:00:01.6]} 53. g6+ {[%clk 0:01:06.8]} 53... Kg7 {[%clk 0:00:02]} 54.
Re7+ {[%clk 0:01:06]} 54... Kh6 {[%clk 0:00:02.6]} 55. Rh7+ {[%clk 0:01:06.5]}
55... Kg5 {[%clk 0:00:03.2]} 56. g7 {[%clk 0:01:07.2]} 56... Bxg7 {[%clk
0:00:03.6]} 57. Rxg7+ {[%clk 0:01:08.1]} 57... Kxh5 {[%clk 0:00:04.2]} 58. Rb7
{[%clk 0:01:08]} 58... Rb4 {[%clk 0:00:04.1]} 59. Ke3 {[%clk 0:01:07.1]} 59...
Nc4+ {[%clk 0:00:02.9]} 60. Kd4 {[%clk 0:01:07.6]} 60... Rxb7 {[%clk 0:00:03.8]}
61. Kxd5 {[%clk 0:01:08.5]} 61... Na3 {[%clk 0:00:03.7]} 62. Kc5 {[%clk
0:01:08.6]} 62... Rb2 {[%clk 0:00:04.3]} 63. Kd4 {[%clk 0:01:07.9]} 63... Rxa2
{[%clk 0:00:04.6]} 64. Kc3 {[%clk 0:01:08.8]} 64... Rg2 {[%clk 0:00:04.7]} 65.
Kb3 {[%clk 0:01:09.7]} 65... Nb5 {[%clk 0:00:05.1]} 66. Kb4 {[%clk 0:01:09.9]}
66... Nd6 {[%clk 0:00:06]} 67. Kc5 {[%clk 0:01:10.8]} 67... Nf5 {[%clk
0:00:06.9]} 68. Kb6 {[%clk 0:01:11.3]} 68... Kg5 {[%clk 0:00:07.5]} 69. Kc6
{[%clk 0:01:12.2]} 69... Re2 {[%clk 0:00:08.1]} 70. Kd5 {[%clk 0:01:13.1]} 70...
Kf4 {[%clk 0:00:08.7]} 71. Kc5 {[%clk 0:01:14]} 71... Rd2 {[%clk 0:00:09.2]} 72.
Kc4 {[%clk 0:01:14.9]} 72... Ke4 {[%clk 0:00:09.7]} 73. Kc3 {[%clk 0:01:15.8]}
73... Rd8 {[%clk 0:00:10.1]} 74. Kc4 {[%clk 0:01:16.1]} 74... Rc8+ {[%clk
0:00:10.4]} 75. Kb5 {[%clk 0:01:17]} 75... Kd5 {[%clk 0:00:10.5]} 76. Kb6 {[%clk
0:01:17.9]} 76... Rc1 {[%clk 0:00:10.8]} 77. Kb7 {[%clk 0:01:18.8]} 77... Kd6
{[%clk 0:00:11.5]} 78. Kb8 {[%clk 0:01:19.3]} 78... Kd7 {[%clk 0:00:11.6]} 79.
Ka7 {[%clk 0:01:20.2]} 79... Rb1 {[%clk 0:00:11.7]} 80. Ka6 {[%clk 0:01:21.1]}
80... Kc7 {[%clk 0:00:11.9]} 81. Ka5 {[%clk 0:01:22]} 81... Rb2 {[%clk
0:00:11.4]} 82. Ka4 {[%clk 0:01:22.9]} 82... Rb8 {[%clk 0:00:11.4]} 83. Ka3
{[%clk 0:01:23.8]} 83... Kc6 {[%clk 0:00:11.7]} 84. Ka2 {[%clk 0:01:24.7]} 84...
Kc5 {[%clk 0:00:12.3]} 85. Ka1 {[%clk 0:01:25.6]} 85... Kc4 {[%clk 0:00:12.9]}
86. Ka2 {[%clk 0:01:26.5]} 86... Kc3 {[%clk 0:00:13.1]} 87. Ka3 {[%clk
0:01:27.4]} 87... Ra8# {[%clk 0:00:13.2]} 0-1

[Event "Early-Titled-Tuesday-Blitz-March-19-2024"]
[Site "Chess.com"]
[Date "2024.03.19"]
[Round "7"]
[White "moro182"]
[Black "adotand"]
[Result "1-0"]
[WhiteElo "2861"]
[BlackElo "2995"]
[TimeControl "180+1"]
[EndTime "9:19:26 PDT"]
[Termination "moro182 won by resignation"]

1. d4 {[%clk 0:03:00.9]} 1... Nf6 {[%clk 0:02:58.6]} 2. Bf4 {[%clk 0:02:59.2]}
2... g6 {[%clk 0:02:57]} 3. Nc3 {[%clk 0:02:59.4]} 3... d5 {[%clk 0:02:56.9]} 4.
e3 {[%clk 0:02:59.4]} 4... Bg7 {[%clk 0:02:56.7]} 5. Nb5 {[%clk 0:02:58.5]} 5...
Na6 {[%clk 0:02:56.5]} 6. h3 {[%clk 0:02:59.2]} 6... c6 {[%clk 0:02:55.6]} 7.
Nc3 {[%clk 0:02:58.6]} 7... Qb6 {[%clk 0:02:56.3]} 8. Rb1 {[%clk 0:02:56.8]}
8... O-O {[%clk 0:02:55.6]} 9. Nf3 {[%clk 0:02:56.7]} 9... Nc7 {[%clk
0:02:53.5]} 10. Be2 {[%clk 0:02:52.3]} 10... Nce8 {[%clk 0:02:53.6]} 11. O-O
{[%clk 0:02:44.9]} 11... Nd6 {[%clk 0:02:53.9]} 12. Be5 {[%clk 0:02:42.9]} 12...
Bf5 {[%clk 0:02:50.7]} 13. b4 {[%clk 0:02:29.7]} 13... Nfe4 {[%clk 0:02:21.5]}
14. Nxe4 {[%clk 0:02:28.4]} 14... Nxe4 {[%clk 0:02:22.4]} 15. Rb3 {[%clk
0:02:27.7]} 15... f6 {[%clk 0:02:16.4]} 16. Bh2 {[%clk 0:02:24.7]} 16... Rad8
{[%clk 0:02:16.7]} 17. c4 {[%clk 0:02:17.2]} 17... a6 {[%clk 0:02:12.7]} 18. c5
{[%clk 0:02:09]} 18... Qa7 {[%clk 0:02:12.3]} 19. a4 {[%clk 0:02:08.1]} 19...
Rfe8 {[%clk 0:02:10.6]} 20. b5 {[%clk 0:02:05.2]} 20... axb5 {[%clk 0:02:07.2]}
21. axb5 {[%clk 0:02:04.9]} 21... e5 {[%clk 0:02:05.9]} 22. Qa1 {[%clk
0:01:36.1]} 22... Qxa1 {[%clk 0:01:55.5]} 23. Rxa1 {[%clk 0:01:37]} 23... exd4
{[%clk 0:01:56.2]} 24. exd4 {[%clk 0:01:19.5]} 24... Bh6 {[%clk 0:01:36.2]} 25.
Bf1 {[%clk 0:01:09]} 25... Ra8 {[%clk 0:01:30.3]} 26. Rba3 {[%clk 0:01:02.2]}
26... Rxa3 {[%clk 0:01:23.7]} 27. Rxa3 {[%clk 0:01:03.1]} 27... Nd2 {[%clk
0:01:24.1]} 28. Nxd2 {[%clk 0:00:57.4]} 28... Bxd2 {[%clk 0:01:25]} 29. g4
{[%clk 0:00:56.2]} 29... Be4 {[%clk 0:01:20.6]} 30. b6 {[%clk 0:00:47.7]} 30...
Bc1 {[%clk 0:01:02.5]} 31. Ra2 {[%clk 0:00:44.5]} 31... Bf3 {[%clk 0:01:01.6]}
32. g5 {[%clk 0:00:32.4]} 32... fxg5 {[%clk 0:00:43.3]} 33. Be5 {[%clk
0:00:31.4]} 33... Bf4 {[%clk 0:00:43.8]} 34. Ra3 {[%clk 0:00:26.8]} 34... Bd1
{[%clk 0:00:34]} 35. Ra7 {[%clk 0:00:21.3]} 35... Bxe5 {[%clk 0:00:31.4]} 36.
dxe5 {[%clk 0:00:22.2]} 36... Re7 {[%clk 0:00:31.8]} 37. Ba6 {[%clk 0:00:21.6]}
37... Rxe5 {[%clk 0:00:32.1]} 38. Bxb7 {[%clk 0:00:15.8]} 38... Bf3 {[%clk
0:00:31.4]} 39. Bxc6 {[%clk 0:00:14.2]} 39... Re1+ {[%clk 0:00:31.3]} 40. Kh2
{[%clk 0:00:13.8]} 40... Be4 {[%clk 0:00:25.9]} 41. f3 {[%clk 0:00:12.7]} 41...
Bxf3 {[%clk 0:00:11.9]} 42. b7 {[%clk 0:00:12.8]} 42... Rb1 {[%clk 0:00:08.5]}
43. Ra8+ {[%clk 0:00:12.8]} 43... Kg7 {[%clk 0:00:09.3]} 44. b8=Q {[%clk
0:00:13.7]} 44... Rxb8 {[%clk 0:00:09.6]} 45. Rxb8 {[%clk 0:00:14.6]} 45... h5
{[%clk 0:00:09.5]} 46. Rd8 {[%clk 0:00:14.6]} 46... Kf6 {[%clk 0:00:09.1]} 47.
Rf8+ {[%clk 0:00:14.6]} 1-0

[Event "Early-Titled-Tuesday-Blitz-March-19-2024"]
[Site "Chess.com"]
[Date "2024.03.19"]
[Round "7"]
[White "Kirill_Klukin"]
[Black "only_strong_moves"]
[Result "0-1"]
[WhiteElo "2791"]
[BlackElo "2641"]
[TimeControl "180+1"]
[EndTime "9:19:26 PDT"]
[Termination "only_strong_moves won by resignation"]

1. f4 {[%clk 0:03:00.3]} 1... d5 {[%clk 0:02:59.8]} 2. Nf3 {[%clk 0:03:00.5]}
2... c5 {[%clk 0:03:00.2]} 3. g3 {[%clk 0:03:00.9]} 3... Nc6 {[%clk 0:03:00.7]}
4. Bg2 {[%clk 0:03:01.6]} 4... h5 {[%clk 0:03:00.6]} 5. O-O {[%clk 0:03:00.3]}
5... h4 {[%clk 0:03:01]} 6. Nxh4 {[%clk 0:02:59.8]} 6... Rxh4 {[%clk 0:03:01.4]}
7. gxh4 {[%clk 0:03:00.2]} 7... e6 {[%clk 0:02:58.7]} 8. d3 {[%clk 0:02:56.2]}
8... Qxh4 {[%clk 0:02:58.6]} 9. Qe1 {[%clk 0:02:54.6]} 9... Qh7 {[%clk
0:02:57.4]} 10. e3 {[%clk 0:02:51.4]} 10... Nf6 {[%clk 0:02:56.4]} 11. Nd2
{[%clk 0:02:50]} 11... Bd7 {[%clk 0:02:56.3]} 12. Nf3 {[%clk 0:02:50.3]} 12...
O-O-O {[%clk 0:02:56]} 13. Ne5 {[%clk 0:02:43.1]} 13... Be8 {[%clk 0:02:28.7]}
14. Qg3 {[%clk 0:02:32.1]} 14... Bd6 {[%clk 0:02:26.6]} 15. Bd2 {[%clk
0:02:31.4]} 15... Nh5 {[%clk 0:02:19.2]} 16. Qh3 {[%clk 0:02:13.5]} 16... Nxe5
{[%clk 0:02:18.8]} 17. fxe5 {[%clk 0:02:13.1]} 17... Bxe5 {[%clk 0:02:19.7]} 18.
d4 {[%clk 0:01:59.7]} 18... cxd4 {[%clk 0:02:13.6]} 19. exd4 {[%clk 0:01:59.8]}
19... Bxd4+ {[%clk 0:02:14.5]} 20. Be3 {[%clk 0:02:00.3]} 20... Be5 {[%clk
0:01:55.3]} 21. Bxa7 {[%clk 0:01:49.1]} 21... Qg6 {[%clk 0:01:54.6]} 22. Rae1
{[%clk 0:01:17.9]} 22... Nf4 {[%clk 0:01:43]} 23. Qf3 {[%clk 0:01:15.2]} 23...
Bc7 {[%clk 0:01:19.9]} 24. Be3 {[%clk 0:01:07.5]} 24... Nh5 {[%clk 0:01:09.3]}
25. c3 {[%clk 0:00:45]} 25... f6 {[%clk 0:01:08.4]} 26. Bc5 {[%clk 0:00:27.3]}
26... Bd7 {[%clk 0:01:05.1]} 27. c4 {[%clk 0:00:25.6]} 27... Rh8 {[%clk
0:00:53.8]} 28. h3 {[%clk 0:00:19.9]} 28... Nf4 {[%clk 0:00:50.4]} 29. Qg4
{[%clk 0:00:09.4]} 29... Qxg4 {[%clk 0:00:34]} 30. hxg4 {[%clk 0:00:09.5]} 30...
Nd3 {[%clk 0:00:34.6]} 31. cxd5 {[%clk 0:00:03.7]} 31... Bh2+ {[%clk 0:00:33.7]}
32. Kh1 {[%clk 0:00:03.4]} 32... Bd6+ {[%clk 0:00:31.4]} 33. Bh3 {[%clk
0:00:02.2]} 33... Rxh3+ {[%clk 0:00:28.1]} 34. Kg2 {[%clk 0:00:02.5]} 34... Rg3+
{[%clk 0:00:27.2]} 35. Kh2 {[%clk 0:00:03.1]} 35... Re3+ {[%clk 0:00:18.6]} 36.
Bxd6 {[%clk 0:00:02.5]} 36... Rxe1 {[%clk 0:00:19.1]} 37. Rf3 {[%clk 0:00:02.6]}
37... Re2+ {[%clk 0:00:13]} 38. Kg1 {[%clk 0:00:02.6]} 38... Ne5 {[%clk
0:00:11.6]} 39. Rc3+ {[%clk 0:00:03.1]} 39... Kd8 {[%clk 0:00:11.9]} 40. Bf8
{[%clk 0:00:01.7]} 40... exd5 {[%clk 0:00:11.1]} 41. Bxg7 {[%clk 0:00:02.3]}
41... Nxg4 {[%clk 0:00:11.6]} 42. Rd3 {[%clk 0:00:02.2]} 42... Bc6 {[%clk
0:00:11.2]} 43. Rd4 {[%clk 0:00:02.1]} 43... Re4 {[%clk 0:00:11.2]} 44. Rd2
{[%clk 0:00:01.6]} 44... Ke7 {[%clk 0:00:11.3]} 45. Kg2 {[%clk 0:00:01.5]} 45...
Kf7 {[%clk 0:00:11.6]} 46. Bh8 {[%clk 0:00:01.6]} 46... Kg8 {[%clk 0:00:11.5]}
47. Kg3 {[%clk 0:00:02.1]} 47... Kxh8 {[%clk 0:00:11.5]} 0-1

[Event "Early-Titled-Tuesday-Blitz-March-19-2024"]
[Site "Chess.com"]
[Date "2024.03.19"]
[Round "7"]
[White "bubeliang"]
[Black "tptagain"]
[Result "1/2-1/2"]
[WhiteElo "2812"]
[BlackElo "2957"]
[TimeControl "180+1"]
[EndTime "9:19:28 PDT"]
[Termination "Game drawn by repetition"]

1. d4 {[%clk 0:03:00.9]} 1... d5 {[%clk 0:02:59.6]} 2. Nc3 {[%clk 0:03:00.5]}
2... e6 {[%clk 0:02:58.7]} 3. Bf4 {[%clk 0:02:58.9]} 3... Bb4 {[%clk 0:02:58]}
4. e3 {[%clk 0:02:58.2]} 4... Nf6 {[%clk 0:02:54.6]} 5. Bd3 {[%clk 0:02:57.5]}
5... c5 {[%clk 0:02:53]} 6. dxc5 {[%clk 0:02:55.9]} 6... Nbd7 {[%clk 0:02:50.3]}
7. Nf3 {[%clk 0:02:55.6]} 7... Nxc5 {[%clk 0:02:48.5]} 8. O-O {[%clk 0:02:55.3]}
8... O-O {[%clk 0:02:44.8]} 9. Ne5 {[%clk 0:02:54.8]} 9... Nxd3 {[%clk
0:02:39.1]} 10. cxd3 {[%clk 0:02:55.7]} 10... h6 {[%clk 0:02:34.8]} 11. Qf3
{[%clk 0:02:53.6]} 11... Bd7 {[%clk 0:02:26.8]} 12. Ne2 {[%clk 0:02:46]} 12...
Be7 {[%clk 0:02:18.3]} 13. g4 {[%clk 0:02:40.6]} 13... Nh7 {[%clk 0:02:12.3]}
14. Kh1 {[%clk 0:02:40]} 14... Rc8 {[%clk 0:02:11.5]} 15. Rac1 {[%clk
0:02:38.5]} 15... Be8 {[%clk 0:02:10]} 16. d4 {[%clk 0:02:27.1]} 16... Bb5
{[%clk 0:01:49.5]} 17. Rfe1 {[%clk 0:02:13]} 17... Nf6 {[%clk 0:01:37.4]} 18. g5
{[%clk 0:02:08]} 18... hxg5 {[%clk 0:01:35.9]} 19. Bxg5 {[%clk 0:02:08]} 19...
Rxc1 {[%clk 0:01:34.6]} 20. Rxc1 {[%clk 0:02:06.5]} 20... Ne4 {[%clk 0:01:30.4]}
21. Bxe7 {[%clk 0:02:04.1]} 21... Qxe7 {[%clk 0:01:30.3]} 22. Nc3 {[%clk
0:01:59.8]} 22... Nxc3 {[%clk 0:01:30.1]} 23. bxc3 {[%clk 0:02:00.7]} 23... Qf6
{[%clk 0:01:17.9]} 24. Qxf6 {[%clk 0:01:43.1]} 24... gxf6 {[%clk 0:01:18.8]} 25.
Rg1+ {[%clk 0:01:43.2]} 25... Kh8 {[%clk 0:01:15.7]} 26. Ng4 {[%clk 0:01:43.4]}
26... Be2 {[%clk 0:01:16.3]} 27. h3 {[%clk 0:01:35.5]} 27... Bxg4 {[%clk
0:01:14.5]} 28. hxg4 {[%clk 0:01:35.9]} 28... Rc8 {[%clk 0:01:13.8]} 29. Rb1
{[%clk 0:01:35.7]} 29... b6 {[%clk 0:01:09.7]} 30. Rb3 {[%clk 0:01:35.4]} 30...
Kg7 {[%clk 0:01:04.4]} 31. Kg2 {[%clk 0:01:35.3]} 31... Kg6 {[%clk 0:01:04.2]}
32. Kf3 {[%clk 0:01:34.9]} 32... Kg5 {[%clk 0:01:03.8]} 33. Kg3 {[%clk
0:01:34.8]} 33... f5 {[%clk 0:01:02.4]} 34. gxf5 {[%clk 0:01:33.1]} 34... Kxf5
{[%clk 0:01:02.4]} 35. Kf3 {[%clk 0:01:33.4]} 35... f6 {[%clk 0:00:59.9]} 36.
Ke2 {[%clk 0:01:26.4]} 36... Rc4 {[%clk 0:00:59.2]} 37. Ra3 {[%clk 0:01:25.6]}
37... Rc7 {[%clk 0:00:57.9]} 38. f3 {[%clk 0:01:24.7]} 38... e5 {[%clk
0:00:57.6]} 39. Kd3 {[%clk 0:01:22.2]} 39... e4+ {[%clk 0:00:46.2]} 40. fxe4+
{[%clk 0:01:18.6]} 40... dxe4+ {[%clk 0:00:47.1]} 41. Ke2 {[%clk 0:01:18.3]}
41... Kg4 {[%clk 0:00:42.8]} 42. Kd2 {[%clk 0:00:44.9]} 42... Kf3 {[%clk
0:00:33.1]} 43. c4 {[%clk 0:00:43.1]} 43... f5 {[%clk 0:00:20.8]} 44. Rc3 {[%clk
0:00:41.5]} 44... Rh7 {[%clk 0:00:18.5]} 45. c5 {[%clk 0:00:39]} 45... bxc5
{[%clk 0:00:18.5]} 46. dxc5 {[%clk 0:00:39.9]} 46... Rd7+ {[%clk 0:00:18.6]} 47.
Ke1 {[%clk 0:00:26.6]} 47... f4 {[%clk 0:00:19]} 48. c6 {[%clk 0:00:25.9]} 48...
Rc7 {[%clk 0:00:18.1]} 49. exf4+ {[%clk 0:00:24.6]} 49... Kxf4 {[%clk
0:00:17.5]} 50. Ke2 {[%clk 0:00:20.9]} 50... Ke5 {[%clk 0:00:17.9]} 51. Ke3
{[%clk 0:00:20.9]} 51... Kd5 {[%clk 0:00:18.3]} 52. Rc1 {[%clk 0:00:21]} 52...
a5 {[%clk 0:00:14.2]} 53. Rc3 {[%clk 0:00:16.6]} 53... Rxc6 {[%clk 0:00:11.9]}
54. Rxc6 {[%clk 0:00:16.4]} 54... Kxc6 {[%clk 0:00:12.8]} 55. Kxe4 {[%clk
0:00:17.1]} 55... Kc5 {[%clk 0:00:13.7]} 56. Kd3 {[%clk 0:00:17.6]} 56... Kb4
{[%clk 0:00:14.3]} 57. Kc2 {[%clk 0:00:18.3]} 57... Ka3 {[%clk 0:00:15]} 58. Kb1
{[%clk 0:00:19.2]} 58... Kb4 {[%clk 0:00:15.5]} 59. Ka1 {[%clk 0:00:20.1]} 59...
Ka3 {[%clk 0:00:15.6]} 60. Kb1 {[%clk 0:00:21]} 60... Kb4 {[%clk 0:00:16.3]} 61.
Ka1 {[%clk 0:00:21.9]} 61... Ka3 {[%clk 0:00:16.8]} 62. Kb1 {[%clk 0:00:22.8]}
1/2-1/2

[Event "Early-Titled-Tuesday-Blitz-March-19-2024"]
[Site "Chess.com"]
[Date "2024.03.19"]
[Round "7"]
[White "djano"]
[Black "PeshkaCh"]
[Result "0-1"]
[WhiteElo "2629"]
[BlackElo "2845"]
[TimeControl "180+1"]
[EndTime "9:19:30 PDT"]
[Termination "PeshkaCh won by checkmate"]

1. e4 {[%clk 0:03:00.9]} 1... e5 {[%clk 0:03:00]} 2. Nf3 {[%clk 0:02:59.8]} 2...
Nc6 {[%clk 0:03:00.4]} 3. d4 {[%clk 0:03:00.2]} 3... exd4 {[%clk 0:03:00.7]} 4.
Nxd4 {[%clk 0:03:00.8]} 4... Nf6 {[%clk 0:03:01.3]} 5. Nxc6 {[%clk 0:02:59.2]}
5... bxc6 {[%clk 0:03:01.9]} 6. e5 {[%clk 0:02:59.1]} 6... Nd5 {[%clk
0:03:01.9]} 7. Bd3 {[%clk 0:02:57.5]} 7... d6 {[%clk 0:02:58.1]} 8. exd6 {[%clk
0:02:52]} 8... Bxd6 {[%clk 0:02:59]} 9. O-O {[%clk 0:02:51.4]} 9... O-O {[%clk
0:02:58.9]} 10. Nd2 {[%clk 0:02:47.3]} 10... Qh4 {[%clk 0:02:53]} 11. g3 {[%clk
0:02:34]} 11... Qh3 {[%clk 0:02:48.1]} 12. Ne4 {[%clk 0:02:19.6]} 12... h6
{[%clk 0:02:34.7]} 13. Nxd6 {[%clk 0:02:16.7]} 13... cxd6 {[%clk 0:02:35.6]} 14.
Qf3 {[%clk 0:02:13.2]} 14... Nb4 {[%clk 0:02:29.2]} 15. Bf4 {[%clk 0:01:53.1]}
15... Rd8 {[%clk 0:02:11.5]} 16. Rfe1 {[%clk 0:01:32.9]} 16... Be6 {[%clk
0:01:48.6]} 17. Qe4 {[%clk 0:01:21.6]} 17... Nxd3 {[%clk 0:01:44.5]} 18. Qxd3
{[%clk 0:01:22.5]} 18... Rab8 {[%clk 0:01:33.8]} 19. b3 {[%clk 0:01:19.7]} 19...
Rb5 {[%clk 0:01:33.6]} 20. f3 {[%clk 0:01:14]} 20... Rh5 {[%clk 0:01:21.5]} 21.
Qd2 {[%clk 0:01:08]} 21... Bd5 {[%clk 0:01:19.4]} 22. Rf1 {[%clk 0:00:45.2]}
22... Re8 {[%clk 0:01:12.9]} 23. c4 {[%clk 0:00:44.4]} 23... Be6 {[%clk
0:01:05.8]} 24. Rae1 {[%clk 0:00:42]} 24... Rd8 {[%clk 0:00:51.8]} 25. Rf2
{[%clk 0:00:37.1]} 25... Rf5 {[%clk 0:00:42.3]} 26. Bxd6 {[%clk 0:00:32.9]}
26... c5 {[%clk 0:00:34.9]} 27. b4 {[%clk 0:00:31.2]} 27... Bxc4 {[%clk
0:00:29.5]} 28. bxc5 {[%clk 0:00:29.8]} 28... Rxc5 {[%clk 0:00:29.9]} 29. Qb4
{[%clk 0:00:21.9]} 29... Rcc8 {[%clk 0:00:28.4]} 30. Bf4 {[%clk 0:00:14]} 30...
Bd5 {[%clk 0:00:26.6]} 31. Qa3 {[%clk 0:00:11.3]} 31... Re8 {[%clk 0:00:21.2]}
32. Rfe2 {[%clk 0:00:08.7]} 32... Red8 {[%clk 0:00:16.4]} 33. Rd2 {[%clk
0:00:07.2]} 33... Bc6 {[%clk 0:00:11.9]} 34. Rxd8+ {[%clk 0:00:07.6]} 34... Rxd8
{[%clk 0:00:12.8]} 35. Qa5 {[%clk 0:00:05.8]} 35... Rc8 {[%clk 0:00:11]} 36. Qa3
{[%clk 0:00:05.1]} 36... Bd5 {[%clk 0:00:10.4]} 37. Qb2 {[%clk 0:00:03.6]} 37...
Bxf3 {[%clk 0:00:09.7]} 38. Qf2 {[%clk 0:00:03.8]} 38... Bd5 {[%clk 0:00:09.7]}
39. Rd1 {[%clk 0:00:02.9]} 39... Ba8 {[%clk 0:00:08.8]} 40. Rc1 {[%clk
0:00:03.1]} 40... Re8 {[%clk 0:00:07.5]} 41. Rd1 {[%clk 0:00:01.4]} 41... Bc6
{[%clk 0:00:06.7]} 42. Rc1 {[%clk 0:00:01.9]} 42... Bd5 {[%clk 0:00:06.9]} 43.
Rd1 {[%clk 0:00:02.5]} 43... Ba8 {[%clk 0:00:05.9]} 44. Rc1 {[%clk 0:00:02.1]}
44... a5 {[%clk 0:00:06.5]} 45. a3 {[%clk 0:00:02.2]} 45... a4 {[%clk
0:00:06.3]} 46. Rb1 {[%clk 0:00:02.5]} 46... Qf5 {[%clk 0:00:06.6]} 47. Re1
{[%clk 0:00:02.5]} 47... Rd8 {[%clk 0:00:06.2]} 48. Rf1 {[%clk 0:00:02.2]} 48...
Qe4 {[%clk 0:00:06.2]} 49. Qe3 {[%clk 0:00:01.9]} 49... Qg2# {[%clk 0:00:06.5]}
0-1